bitfinex/quotes_BTCUSD_20230120
["timestamp","ask_amount","ask_price","bid_price","bid_amount"]
[1674239933817,1.46735115,21379.0,21375.0,0.41478608]
[1674239934070,0.0085,21378.0,21375.0,0.41678608]
[1674239934394,0.314845,21377.0,21375.0,0.41678608]
[1674239934601,0.314845,21377.0,21376.0,0.36996656]
[1674239934861,0.0085,21377.0,21376.0,0.36996656]
[1674239935369,0.0085,21378.0,21376.0,0.36996656]
[1674239935629,0.008,21377.0,21376.0,0.36996656]
[1674239935897,0.089,21377.0,21376.0,0.36996656]
[1674239936144,0.097,21377.0,21376.0,0.37196656]
[1674239936392,0.089,21377.0,21376.0,0.36996656]
[1674239936637,0.089,21377.0,21376.0,0.37096656]
[1674239936967,1.02322762,21377.0,21375.0,0.001]
[1674239937146,0.324865,21376.0,21375.0,0.001]
[1674239937931,0.31474,21376.0,21375.0,0.001]
[1674239938479,0.32374,21376.0,21375.0,0.34305842]
[1674239938744,0.009,21376.0,21375.0,0.34305842]
[1674239940613,0.009,21376.0,21375.0,0.34205842]
[1674239941391,0.009,21376.0,21375.0,0.629936]
[1674239941660,0.009,21376.0,21375.0,1.12900416]
[1674239941919,0.009,21376.0,21375.0,0.729729]
[1674239942204,0.009,21376.0,21375.0,1.70770399]
[1674239942476,0.009,21376.0,21375.0,1.347565]
[1674239944612,0.009,21376.0,21375.0,1.421665]
[1674239945098,0.009,21376.0,21375.0,1.84221287]
[1674239945106,0.009,21376.0,21375.0,1.421665]
[1674239945361,0.009,21376.0,21375.0,1.86245771]
[1674239945612,0.009,21376.0,21375.0,1.421665]
[1674239945886,0.009,21376.0,21375.0,1.76066095]
[1674239946399,0.009,21376.0,21375.0,1.421665]
[1674239946902,0.00843702,21376.0,21375.0,1.421665]
[1674239947163,0.00843702,21376.0,21375.0,1.76428031]
[1674239947447,0.00843702,21376.0,21375.0,1.421665]
[1674239948707,0.00843702,21376.0,21375.0,1.83337905]
[1674239949450,0.00843702,21376.0,21375.0,1.421665]
[1674239949954,0.00843702,21376.0,21375.0,1.75855568]
[1674239950207,0.00209866,21376.0,21375.0,2.05855568]
[1674239950463,0.00209866,21376.0,21375.0,2.50495568]
[1674239950713,0.00209866,21376.0,21375.0,2.79005568]
[1674239951221,0.00209866,21376.0,21375.0,2.49005568]
[1674239951740,0.00209866,21376.0,21375.0,2.79005568]
[1674239953011,0.00209866,21376.0,21375.0,3.26725737]
[1674239953518,0.008,21377.0,21376.0,0.15]
[1674239953773,0.008,21377.0,21376.0,3.04820637]
[1674239954037,0.46021227,21384.0,21376.0,3.04820637]
[1674239954294,0.65453324,21384.0,21380.0,0.0748]
[1674239954571,0.46021227,21384.0,21381.0,1.035152]
[1674239954843,0.46021227,21384.0,21382.0,0.15]
[1674239955138,0.46021227,21384.0,21382.0,0.617675]
[1674239955573,0.01440637,21385.0,21382.0,0.617675]
[1674239955832,0.01440637,21385.0,21382.0,1.01900253]
[1674239955833,0.35843977,21385.0,21382.0,1.01900253]
[1674239956079,0.35843977,21385.0,21382.0,0.55132753]
[1674239956573,0.35843977,21385.0,21382.0,1.02100953]
[1674239957668,0.36730815,21384.0,21382.0,1.48869253]
[1674239957885,0.01440637,21385.0,21382.0,1.48869253]
[1674239958141,0.01440637,21385.0,21383.0,0.44519196]
[1674239959921,0.38775886,21385.0,21383.0,0.45219196]
[1674239960262,0.73120472,21384.0,21383.0,0.007]
[1674239960440,0.92552569,21384.0,21383.0,0.007]
[1674239960693,0.88970472,21384.0,21383.0,0.007]
[1674239960971,1.65734372,21384.0,21383.0,0.007]
[1674239961218,1.093778,21384.0,21379.0,0.41081334]
[1674239961503,0.52287497,21383.0,21379.0,0.41081334]
[1674239961802,0.313229,21382.0,21380.0,0.34725515]
[1674239962069,0.325411,21381.0,21380.0,0.34725515]
[1674239962323,0.935399,21382.0,21380.0,0.34725515]
[1674239963148,0.935399,21382.0,21380.0,0.43925515]
[1674239963408,0.31768,21381.0,21378.0,0.15]
[1674239963668,0.467721,21381.0,21380.0,0.092]
[1674239963918,0.467721,21381.0,21380.0,0.47537942]
[1674239964174,0.935425,21381.0,21380.0,0.47537942]
[1674239964940,1.69457021,21381.0,21378.0,0.4603145]
[1674239965191,1.36667821,21381.0,21380.0,0.092]
[1674239965528,1.69001421,21381.0,21380.0,0.092]
[1674239965706,1.70999621,21381.0,21379.0,0.42221469]
[1674239965980,0.320506,21380.0,21379.0,0.42221469]
[1674239966242,0.89897621,21381.0,21379.0,0.42221469]
[1674239966505,1.59046402,21380.0,21376.0,0.42158006]
[1674239966779,0.51933897,21379.0,21376.0,0.0746]
[1674239967064,0.51933897,21379.0,21375.0,0.43718937]
[1674239967065,1.7254,21378.0,21375.0,0.43718937]
[1674239967322,0.313443,21377.0,21375.0,0.43718937]
[1674239967616,1.730974,21376.0,21375.0,0.43718937]
[1674239967861,1.730974,21376.0,21373.0,0.08125186]
[1674239968234,0.330282,21375.0,21373.0,0.46769024]
[1674239968237,0.330282,21375.0,21374.0,0.36647613]
[1674239968482,1.69996237,21375.0,21373.0,0.00655186]
[1674239968735,1.36968037,21375.0,21373.0,0.00655186]
[1674239968976,0.90184437,21375.0,21373.0,0.00655186]
[1674239969218,1.36968037,21375.0,21374.0,0.092]
[1674239969688,1.36968037,21375.0,21373.0,0.00655186]
[1674239969941,0.31993,21374.0,21373.0,0.03155186]
[1674239970195,1.36968037,21375.0,21373.0,0.03155186]
[1674239970449,0.467858,21374.0,21373.0,0.03155186]
[1674239970704,0.467858,21374.0,21373.0,0.00655186]
[1674239971216,0.90184837,21375.0,21373.0,0.00655186]
[1674239971997,1.36968437,21375.0,21373.0,0.00655186]
[1674239972511,1.36968437,21375.0,21373.0,0.10055186]
[1674239972768,0.66126503,21374.0,21373.0,0.10055186]
[1674239973024,1.59698103,21374.0,21373.0,0.10055186]
[1674239973554,1.59698103,21374.0,21373.0,0.00655186]
[1674239973805,1.60693103,21374.0,21373.0,0.03155186]
[1674239974062,1.60693103,21374.0,21373.0,0.00655186]
[1674239974321,1.61543103,21374.0,21373.0,0.10055186]
[1674239974600,1.60835541,21374.0,21373.0,0.10055186]
[1674239975985,0.69504265,21374.0,21373.0,0.10055186]
[1674239976384,0.70264257,21374.0,21373.0,0.10055186]
[1674239976637,0.69064898,21374.0,21373.0,0.10049015]
[1674239976889,0.82545824,21374.0,21373.0,0.10049015]
[1674239977410,1.16588362,21374.0,21373.0,0.10049015]
[1674239977689,1.12545824,21374.0,21373.0,0.10049015]
[1674239978726,1.23877549,21374.0,21373.0,0.10049015]
[1674239980052,1.70663349,21374.0,21373.0,0.10049015]
[1674239980308,1.86495819,21374.0,21373.0,0.10049015]
[1674239980568,1.93965819,21374.0,21373.0,0.10049015]
[1674239981138,1.81801624,21374.0,21373.0,0.10049015]
[1674239981603,2.2189407,21374.0,21373.0,0.10049015]
[1674239982125,1.81801624,21374.0,21373.0,0.10049015]
[1674239982376,2.18692332,21374.0,21373.0,0.10049015]
[1674239982633,1.73692332,21374.0,21373.0,0.10049015]
[1674239983148,1.56906532,21374.0,21373.0,0.10049015]
[1674239983916,1.96550168,21374.0,21373.0,0.10049015]
[1674239984182,1.77118071,21374.0,21373.0,0.10049015]
[1674239984443,1.92118071,21374.0,21373.0,0.10049015]
[1674239984719,0.15021,21373.0,21372.0,0.01082031]
[1674239985012,1.05828457,21373.0,21372.0,0.01082031]
[1674239985240,0.0025871,21371.0,21369.0,0.01274753]
[1674239985498,1.272968,21370.0,21369.0,0.01274753]
[1674239985756,1.647068,21370.0,21369.0,0.01274753]
[1674239986016,1.655568,21370.0,21369.0,0.01274753]
[1674239986546,1.805568,21370.0,21369.0,0.01274753]
[1674239989451,2.17877401,21370.0,21369.0,0.01274753]
[1674239990242,1.805568,21370.0,21369.0,0.01274753]
[1674239990492,2.28276969,21370.0,21369.0,0.01274753]
[1674239990746,1.805568,21370.0,21369.0,0.01274753]
[1674239991654,2.09974068,21370.0,21369.0,0.01274753]
[1674239991844,1.79974068,21370.0,21369.0,0.01274753]
[1674239992096,1.72564068,21370.0,21369.0,0.01274753]
[1674239992893,1.81664068,21370.0,21369.0,0.01274753]
[1674239993121,1.34869568,21370.0,21369.0,0.01274753]
[1674239993633,0.436578,21370.0,21369.0,0.43326849]
[1674239993891,0.0995,21370.0,21369.0,0.43326849]
[1674239994422,0.091,21370.0,21369.0,0.43326849]
[1674239995192,0.39075125,21372.0,21369.0,0.43326849]
[1674239995513,0.083,21370.0,21369.0,0.43426849]
[1674239995740,0.39606388,21373.0,21369.0,0.97582949]
[1674239996007,0.008,21370.0,21369.0,1.13382949]
[1674239996268,0.39606388,21373.0,21370.0,0.15]
[1674239996523,0.006,21372.0,21370.0,0.15]
[1674239996840,0.006,21372.0,21369.0,1.0339137]
[1674239996841,0.40540622,21372.0,21369.0,1.0339137]
[1674239997047,0.40540622,21372.0,21370.0,1.085874]
[1674239997308,0.02240324,21374.0,21371.0,0.099823]
[1674239997576,0.02240324,21374.0,21372.0,0.467901]
[1674239997577,0.47037664,21374.0,21372.0,0.467901]
[1674239997827,0.4479734,21374.0,21373.0,0.099811]
[1674239998109,0.4479734,21374.0,21373.0,0.249811]
[1674239998362,0.4479734,21374.0,21373.0,0.15]
[1674239998624,0.4479734,21374.0,21371.0,0.90352491]
[1674239998881,0.4539734,21374.0,21373.0,0.008]
[1674239999650,0.4539734,21374.0,21373.0,0.47588]
[1674239999900,0.44892765,21376.0,21373.0,0.331199]
[1674240000164,0.008,21374.0,21373.0,0.339199]
[1674240000912,0.008,21374.0,21373.0,0.489199]
[1674240001216,0.008,21374.0,21373.0,0.257808]
[1674240001434,0.40427179,21378.0,21373.0,0.67787883]
[1674240001726,0.467769,21379.0,21374.0,0.0747]
[1674240001727,0.42722749,21377.0,21374.0,0.0747]
[1674240002524,0.42722749,21377.0,21374.0,0.42170309]
[1674240002816,0.42722749,21377.0,21375.0,0.38046792]
[1674240003070,0.50922749,21377.0,21375.0,0.38046792]
[1674240003837,0.50922749,21377.0,21375.0,0.53046792]
[1674240004092,0.42722749,21377.0,21375.0,0.53046792]
[1674240004363,0.51022749,21377.0,21375.0,0.38146792]
[1674240005654,0.083,21377.0,21376.0,0.57158936]
[1674240006175,0.083,21377.0,21376.0,0.52137736]
[1674240006431,0.08328424,21377.0,21375.0,0.001]
[1674240006686,0.00028424,21377.0,21374.0,1.58477085]
[1674240006959,0.08328424,21377.0,21376.0,0.001]
[1674240007363,0.08328424,21377.0,21376.0,0.33414525]
[1674240007562,0.08328424,21377.0,21376.0,0.33314525]
[1674240007563,0.00028424,21377.0,21376.0,0.33314525]
[1674240008091,0.08228424,21377.0,21376.0,0.33314525]
[1674240008678,0.16528424,21377.0,21376.0,0.33414525]
[1674240010655,0.16528424,21377.0,21376.0,0.001]
[1674240012373,0.16528424,21377.0,21376.0,0.38849714]
[1674240013107,0.16528424,21377.0,21376.0,1.5129097]
[1674240013363,0.16550263,21377.0,21376.0,1.44629586]
[1674240013851,0.16550263,21377.0,21376.0,1.89629586]
[1674240014342,0.00021839,21377.0,21376.0,1.96959586]
[1674240014603,0.00021839,21377.0,21376.0,2.6763241]
[1674240014849,0.00021839,21377.0,21376.0,2.43085889]
[1674240015172,0.01410335,21380.0,21376.0,2.56485889]
[1674240015418,0.01410335,21380.0,21379.0,0.0748]
[1674240015668,0.01410335,21380.0,21379.0,1.110063]
[1674240016169,0.01410335,21380.0,21379.0,1.260063]
[1674240017374,0.01410335,21380.0,21379.0,0.642315]
[1674240017631,0.01410335,21380.0,21379.0,0.926315]
[1674240017874,0.46252781,21380.0,21379.0,0.776315]
[1674240018103,0.46252781,21380.0,21379.0,0.134]
[1674240018603,0.01410335,21380.0,21379.0,0.134]
[1674240018877,0.01410335,21380.0,21379.0,0.57895954]
[1674240019135,0.01410335,21380.0,21379.0,0.67872354]
[1674240019871,0.01410335,21380.0,21379.0,0.57895954]
[1674240020118,0.01410335,21380.0,21379.0,1.51445554]
[1674240020375,0.01410335,21380.0,21379.0,1.61421954]
[1674240020629,0.01410335,21380.0,21379.0,0.67872354]
[1674240020883,0.01410335,21380.0,21379.0,0.57895954]
[1674240023366,0.01410335,21380.0,21379.0,1.04670754]
[1674240023613,0.01410335,21380.0,21379.0,0.57895954]
[1674240026054,0.01410335,21380.0,21379.0,0.134]
[1674240026298,0.42188343,21380.0,21379.0,0.134]
[1674240026789,0.73111843,21380.0,21379.0,0.134]
[1674240027287,1.19884443,21380.0,21379.0,0.134]
[1674240027662,1.19884443,21380.0,21377.0,0.37947455]
[1674240027822,0.88960943,21380.0,21379.0,0.125]
[1674240028546,1.21531843,21380.0,21379.0,0.125]
[1674240029310,0.74759243,21380.0,21378.0,0.37512967]
[1674240029548,0.42188343,21380.0,21379.0,0.115]
[1674240029796,1.66504643,21380.0,21379.0,0.115]
[1674240030036,1.66504643,21380.0,21376.0,0.80045003]
[1674240030272,1.0839444,21380.0,21377.0,0.43709497]
[1674240030520,1.0839444,21380.0,21378.0,0.125]
[1674240030521,0.88962343,21380.0,21378.0,0.125]
[1674240030766,0.88962343,21380.0,21378.0,0.46958625]
[1674240031234,0.88960943,21380.0,21376.0,0.61837103]
[1674240031530,0.36237978,21379.0,21377.0,0.35632339]
[1674240031765,0.67615032,21380.0,21378.0,0.15]
[1674240031766,0.48182935,21380.0,21378.0,0.15]
[1674240032008,0.01410335,21380.0,21378.0,0.275]
[1674240032261,0.01410335,21380.0,21378.0,0.15]
[1674240032507,0.01410335,21380.0,21379.0,0.43000127]
[1674240032781,0.01410335,21380.0,21379.0,0.99751627]
[1674240032995,0.01410335,21380.0,21379.0,0.89774927]
[1674240034233,0.01410335,21380.0,21379.0,1.01274927]
[1674240034716,0.01410335,21380.0,21379.0,1.23734927]
[1674240034931,0.01410335,21380.0,21379.0,1.61924453]
[1674240035239,0.01410335,21380.0,21379.0,1.37486]
[1674240035456,0.01410335,21380.0,21379.0,1.78060111]
[1674240035457,0.01401272,21380.0,21379.0,1.78060111]
[1674240035668,0.01401272,21380.0,21379.0,1.63060111]
[1674240038602,0.01401272,21380.0,21379.0,1.53083711]
[1674240040275,0.01401272,21380.0,21379.0,0.98848911]
[1674240042272,0.01401272,21380.0,21379.0,1.45623711]
[1674240043591,0.01401272,21380.0,21379.0,1.55600111]
[1674240043854,0.01401272,21380.0,21379.0,1.45623711]
[1674240044631,0.01401272,21380.0,21379.0,1.55600111]
[1674240044886,0.01401272,21380.0,21379.0,1.70600111]
[1674240045142,0.01401272,21380.0,21379.0,1.08825311]
[1674240045412,0.01401272,21380.0,21379.0,0.98848911]
[1674240046188,0.01401272,21380.0,21379.0,1.70600111]
[1674240048810,0.01401272,21380.0,21379.0,1.60623711]
[1674240049584,0.01401272,21380.0,21379.0,1.70600111]
[1674240050088,0.01401272,21380.0,21379.0,1.60623711]
[1674240050345,0.01401272,21380.0,21379.0,1.45623711]
[1674240050662,0.01401272,21380.0,21379.0,0.98848911]
[1674240053440,0.34585713,21380.0,21379.0,0.115]
[1674240055273,0.81309313,21380.0,21379.0,0.115]
[1674240055823,1.75403669,21380.0,21379.0,0.115]
[1674240056066,2.17654172,21380.0,21379.0,0.115]
[1674240056328,2.45613984,21380.0,21379.0,0.115]
[1674240056591,2.60613984,21380.0,21379.0,0.115]
[1674240057114,2.71775168,21380.0,21376.0,0.00056303]
[1674240057348,0.0748,21377.0,21376.0,0.00056303]
[1674240057598,1.957287,21377.0,21376.0,0.00056303]
[1674240057848,2.265787,21377.0,21376.0,0.00056303]
[1674240058374,1.96626111,21377.0,21376.0,0.00856303]
[1674240058878,2.26626111,21377.0,21376.0,0.00056303]
[1674240059139,2.26626111,21377.0,21376.0,0.00956303]
[1674240059390,2.11626111,21377.0,21376.0,0.00956303]
[1674240059684,1.81626111,21377.0,21376.0,0.00956303]
[1674240059884,2.27578831,21377.0,21376.0,0.00956303]
[1674240060170,1.81626111,21377.0,21376.0,0.00956303]
[1674240060420,2.28561706,21377.0,21376.0,0.00956303]
[1674240061243,2.11782506,21377.0,21376.0,0.00956303]
[1674240061497,1.81782506,21377.0,21376.0,0.00956303]
[1674240061743,1.74302506,21377.0,21376.0,0.00956303]
[1674240062529,1.72366911,21377.0,21376.0,0.00956303]
[1674240063034,2.15960988,21377.0,21376.0,0.00956303]
[1674240063290,1.72366911,21377.0,21376.0,0.00956303]
[1674240063596,2.023859,21377.0,21376.0,0.00956303]
[1674240063803,1.79836911,21377.0,21376.0,0.00956303]
[1674240064057,0.466373,21376.0,21369.0,0.47466442]
[1674240064321,0.93572,21374.0,21369.0,0.40868566]
[1674240064574,0.51565297,21373.0,21370.0,0.15]
[1674240064830,0.72758535,21372.0,21370.0,0.15]
[1674240065053,0.41847835,21372.0,21370.0,0.15]
[1674240065301,0.41847835,21372.0,21370.0,0.14]
[1674240065563,0.0004682,21371.0,21370.0,0.14]
[1674240065809,0.0004682,21371.0,21370.0,0.249]
[1674240066085,0.0004682,21371.0,21370.0,0.6946979]
[1674240066603,0.0004682,21371.0,21370.0,0.81109835]
[1674240066859,0.0004682,21371.0,21370.0,0.60226835]
[1674240067359,0.467889,21373.0,21370.0,0.71326835]
[1674240068131,0.87742321,21374.0,21370.0,0.60226835]
[1674240068393,0.5419,21377.0,21370.0,0.717945]
[1674240068732,0.35322232,21376.0,21371.0,0.43313732]
[1674240068897,0.35322232,21376.0,21372.0,0.46789]
[1674240069146,0.35322232,21376.0,21373.0,0.249808]
[1674240069418,0.43084783,21375.0,21373.0,1.085739]
[1674240069666,0.43084783,21375.0,21373.0,0.467877]
[1674240070422,0.43084783,21375.0,21373.0,0.935757]
[1674240070674,0.43084783,21375.0,21373.0,1.43896628]
[1674240070918,0.00047239,21375.0,21373.0,1.32996628]
[1674240071166,0.00047239,21375.0,21374.0,0.249802]
[1674240071418,0.39125093,21376.0,21374.0,0.099802]
[1674240071669,0.39125093,21376.0,21373.0,0.97108628]
[1674240071915,0.39125093,21376.0,21373.0,0.86208628]
[1674240072665,0.39125093,21376.0,21374.0,0.83189455]
[1674240072930,0.39125093,21376.0,21374.0,0.47304355]
[1674240073179,0.39125093,21376.0,21374.0,0.36404355]
[1674240073690,0.39125093,21376.0,21374.0,0.83189255]
[1674240073954,0.35433374,21377.0,21374.0,0.83189255]
[1674240074208,0.542363,21379.0,21374.0,1.29975055]
[1674240074476,0.36250077,21378.0,21375.0,0.099796]
[1674240074729,0.34374629,21377.0,21374.0,0.94190155]
[1674240075259,0.34374629,21377.0,21375.0,0.36247562]
[1674240075260,0.81154529,21377.0,21375.0,0.36247562]
[1674240075738,0.81154529,21377.0,21375.0,0.83030162]
[1674240075739,0.34374629,21377.0,21375.0,0.83030162]
[1674240076048,0.35473916,21379.0,21375.0,0.83030162]
[1674240076414,0.40595809,21378.0,21375.0,0.36247562]
[1674240076615,0.40595809,21378.0,21375.0,0.40347562]
[1674240076868,0.320254,21377.0,21375.0,0.40347562]
[1674240077120,0.87373009,21378.0,21375.0,0.36247562]
[1674240077411,0.87373009,21378.0,21375.0,0.36847562]
[1674240077663,0.87373009,21378.0,21375.0,0.36247562]
[1674240077929,0.43414038,21377.0,21375.0,0.36247562]
[1674240078188,0.43414038,21377.0,21375.0,0.40347562]
[1674240079242,0.43414038,21377.0,21375.0,0.36247562]
[1674240080018,0.43414038,21377.0,21375.0,0.40347562]
[1674240081307,0.43414038,21377.0,21375.0,0.87131062]
[1674240081596,0.86401279,21379.0,21376.0,0.34864914]
[1674240082086,0.45991543,21378.0,21376.0,0.34864914]
[1674240082866,0.93071706,21380.0,21376.0,0.34864914]
[1674240083122,0.93071706,21380.0,21377.0,0.15]
[1674240084277,0.01292996,21380.0,21377.0,1.085576]
[1674240084441,0.01292996,21380.0,21378.0,0.099776]
[1674240084736,0.01292996,21380.0,21379.0,0.467748]
[1674240084988,0.01292996,21380.0,21379.0,0.567513]
[1674240085761,0.01292996,21380.0,21379.0,0.099765]
[1674240086017,0.01292996,21380.0,21379.0,0.56755301]
[1674240086787,0.01292996,21380.0,21379.0,0.46778801]
[1674240087286,0.01292996,21380.0,21379.0,0.71755201]
[1674240087567,0.01292996,21380.0,21379.0,0.61778801]
[1674240088092,0.0128537,21380.0,21379.0,0.46778801]
[1674240088867,0.0128537,21380.0,21379.0,0.86197327]
[1674240089126,0.0128537,21380.0,21379.0,0.96173727]
[1674240090170,0.0128537,21380.0,21379.0,0.34398927]
[1674240090386,0.0128537,21380.0,21379.0,0.24422527]
[1674240090683,0.0128537,21380.0,21379.0,0.71197327]
[1674240090967,0.0128537,21380.0,21379.0,0.81173727]
[1674240091472,0.0128537,21380.0,21379.0,1.27948527]
[1674240092105,0.0128537,21380.0,21379.0,0.71197327]
[1674240092563,0.0128537,21380.0,21379.0,0.24422527]
[1674240092810,0.0128537,21380.0,21379.0,0.109]
[1674240093114,0.57168137,21380.0,21379.0,0.109]
[1674240093412,0.88684837,21380.0,21379.0,0.109]
[1674240093665,0.81485837,21380.0,21379.0,0.109]
[1674240093938,0.49969137,21380.0,21379.0,0.109]
[1674240094189,0.42654137,21380.0,21379.0,0.109]
[1674240095024,0.35184137,21380.0,21379.0,0.109]
[1674240095542,0.67136137,21380.0,21379.0,0.109]
[1674240096580,1.13908737,21380.0,21379.0,0.109]
[1674240097107,1.60681337,21380.0,21379.0,0.109]
[1674240097655,1.13908737,21380.0,21379.0,0.109]
[1674240098414,0.67136137,21380.0,21379.0,0.109]
[1674240099237,0.81956737,21380.0,21379.0,0.109]
[1674240099483,0.35184137,21380.0,21379.0,0.109]
[1674240102004,0.0128537,21380.0,21379.0,0.109]
[1674240102271,0.0128537,21380.0,21379.0,0.67899718]
[1674240102551,0.0128537,21380.0,21379.0,1.625409]
[1674240102807,0.06804106,21380.0,21379.0,1.95928796]
[1674240103311,0.06804106,21380.0,21379.0,1.625409]
[1674240104387,0.06804106,21380.0,21379.0,1.475409]
[1674240105434,0.06804106,21380.0,21379.0,0.907897]
[1674240107991,0.06804106,21380.0,21379.0,0.109]
[1674240107995,0.46268424,21380.0,21379.0,0.109]
[1674240109333,0.78407124,21380.0,21379.0,0.109]
[1674240110138,1.25179724,21380.0,21379.0,0.109]
[1674240110717,0.78407124,21380.0,21379.0,0.109]
[1674240110983,0.06804106,21380.0,21379.0,0.259]
[1674240111483,0.06804106,21380.0,21379.0,0.65552496]
[1674240112532,0.06804106,21380.0,21379.0,0.50552496]
[1674240113107,0.60979139,21380.0,21379.0,0.109]
[1674240113356,1.33506578,21380.0,21379.0,0.109]
[1674240113600,1.48506578,21380.0,21379.0,0.109]
[1674240114108,1.95279178,21380.0,21379.0,0.109]
[1674240116206,1.95279178,21380.0,21377.0,0.41849219]
[1674240116472,0.52144,21379.0,21377.0,0.41849219]
[1674240116740,0.315644,21378.0,21377.0,0.41849219]
[1674240117277,0.0748,21379.0,21377.0,0.41849219]
[1674240117529,0.9977612,21379.0,21377.0,0.41849219]
[1674240118046,0.9977562,21379.0,21377.0,0.41849219]
[1674240118351,0.9229562,21379.0,21377.0,0.41849219]
[1674240118866,0.9229562,21379.0,21377.0,0.42449219]
[1674240119388,0.4552082,21379.0,21377.0,0.42449219]
[1674240120183,0.06796539,21380.0,21377.0,0.42449219]
[1674240120437,0.06796539,21380.0,21378.0,0.36315691]
[1674240122504,0.06796539,21380.0,21378.0,0.37115691]
[1674240122766,0.45351437,21380.0,21378.0,0.37115691]
[1674240125874,0.06796539,21380.0,21378.0,0.83892591]
[1674240126625,0.00030068,21379.0,21378.0,0.83892591]
[1674240126886,0.00030068,21379.0,21378.0,0.98892591]
[1674240127140,0.00030068,21379.0,21378.0,2.52269747]
[1674240127647,0.00030068,21379.0,21378.0,2.24071713]
[1674240127889,0.00030068,21379.0,21378.0,2.67769413]
[1674240128148,0.00030068,21379.0,21378.0,2.77869413]
[1674240128391,0.00030068,21379.0,21378.0,2.67769413]
[1674240128646,0.00030068,21379.0,21378.0,2.77769413]
[1674240128916,0.00030068,21379.0,21378.0,2.83417475]
[1674240129183,0.00030068,21379.0,21378.0,3.36135173]
[1674240129684,7.835e-05,21379.0,21378.0,3.15711049]
[1674240129948,7.835e-05,21379.0,21378.0,3.8273729]
[1674240130196,7.835e-05,21379.0,21378.0,3.4923472]
[1674240130445,0.00029546,21379.0,21378.0,3.66036361]
[1674240130937,0.00029546,21379.0,21378.0,3.43669556]
[1674240131711,0.00029546,21379.0,21378.0,3.91389725]
[1674240132200,0.00029546,21379.0,21378.0,4.13757765]
[1674240132469,0.00029546,21379.0,21378.0,3.85799258]
[1674240132735,0.00029546,21379.0,21378.0,4.13757765]
[1674240133256,0.00029546,21379.0,21378.0,3.63431218]
[1674240134413,0.00029546,21379.0,21378.0,3.91378951]
[1674240134672,0.00029546,21379.0,21378.0,3.38844824]
[1674240136245,5.257e-05,21379.0,21378.0,3.38844824]
[1674240136678,0.00029517,21379.0,21378.0,3.38844824]
[1674240136679,0.00029517,21379.0,21378.0,3.61194466]
[1674240136933,0.00029517,21379.0,21378.0,3.77956778]
[1674240137457,0.00029517,21379.0,21378.0,3.55607136]
[1674240137722,0.06796539,21380.0,21379.0,0.16604024]
[1674240137980,0.06796539,21380.0,21379.0,3.14151544]
[1674240138241,0.06796539,21380.0,21379.0,3.24127944]
[1674240138490,0.06844393,21380.0,21379.0,3.89624811]
[1674240139004,0.06844393,21380.0,21379.0,3.67279155]
[1674240139246,0.06844393,21380.0,21379.0,3.48452603]
[1674240139498,0.06844393,21380.0,21379.0,2.14207859]
[1674240139750,0.06844393,21380.0,21379.0,1.80741235]
[1674240140268,0.06844393,21380.0,21379.0,1.73281235]
[1674240140523,0.06844393,21380.0,21379.0,1.15130024]
[1674240140782,0.43040559,21380.0,21379.0,0.11604024]
[1674240141301,0.62472656,21380.0,21379.0,0.11604024]
[1674240141615,1.76582159,21380.0,21379.0,0.11604024]
[1674240142346,1.40385993,21380.0,21379.0,0.11604024]
[1674240142597,1.85385993,21380.0,21379.0,0.01604024]
[1674240142858,1.94642367,21380.0,21379.0,0.01604024]
[1674240143372,1.56085993,21380.0,21379.0,0.02304024]
[1674240143634,1.94508131,21380.0,21379.0,0.02304024]
[1674240143885,1.79508131,21380.0,21379.0,0.02304024]
[1674240147005,1.79508131,21380.0,21379.0,0.02295046]
[1674240148264,1.78450576,21380.0,21379.0,0.02295046]
[1674240153561,1.70970576,21380.0,21379.0,0.02295046]
[1674240154318,1.24197976,21380.0,21379.0,0.02295046]
[1674240154577,0.44908976,21380.0,21379.0,0.02295046]
[1674240155368,0.07544393,21380.0,21379.0,0.02295046]
[1674240155712,0.07544393,21380.0,21379.0,1.56347658]
[1674240155941,0.07544393,21380.0,21379.0,1.66324058]
[1674240156197,0.06844393,21380.0,21379.0,1.65624058]
[1674240156450,0.06844393,21380.0,21379.0,1.75024058]
[1674240156703,0.06844393,21380.0,21379.0,1.65624058]
[1674240156961,0.06844393,21380.0,21379.0,1.75024058]
[1674240158776,0.06844393,21380.0,21379.0,1.69460258]
[1674240159032,0.06844393,21380.0,21379.0,1.59521046]
[1674240159292,0.06844393,21380.0,21379.0,1.9298767]
[1674240159583,0.06844393,21380.0,21379.0,3.05180249]
[1674240159818,0.01744351,21380.0,21379.0,3.05179685]
[1674240160078,0.01744351,21380.0,21379.0,3.44416194]
[1674240160348,0.01744351,21380.0,21379.0,2.11641118]
[1674240160600,0.01744351,21380.0,21379.0,1.81641118]
[1674240161119,0.01744351,21380.0,21379.0,1.7046767]
[1674240161378,0.01744351,21380.0,21379.0,1.79960365]
[1674240161630,0.01744351,21380.0,21379.0,1.60938882]
[1674240161887,0.01744351,21380.0,21379.0,1.37001046]
[1674240162130,0.01744351,21380.0,21379.0,1.62556947]
[1674240162366,0.01744351,21380.0,21379.0,1.37001046]
[1674240162628,0.01744351,21380.0,21379.0,1.80767247]
[1674240163136,0.01744351,21380.0,21379.0,1.78322443]
[1674240163469,0.01744351,21380.0,21379.0,1.37001046]
[1674240163940,0.01744351,21380.0,21379.0,1.79138185]
[1674240165496,0.01744351,21380.0,21379.0,1.83149744]
[1674240166049,0.01744351,21380.0,21379.0,1.37001046]
[1674240166306,0.01744351,21380.0,21379.0,1.70115935]
[1674240168153,0.01744351,21380.0,21379.0,2.16890735]
[1674240168410,0.01744351,21380.0,21379.0,1.70115935]
[1674240170199,0.01744351,21380.0,21379.0,1.55115935]
[1674240171478,0.01744351,21380.0,21379.0,0.90884735]
[1674240172006,0.01744351,21380.0,21379.0,0.44109935]
[1674240172270,0.09059351,21380.0,21379.0,0.44109935]
[1674240172798,0.01744351,21380.0,21379.0,0.44109935]
[1674240173067,0.09059351,21380.0,21379.0,0.44109935]
[1674240174116,0.09059351,21380.0,21379.0,0.10995046]
[1674240174372,0.09059351,21380.0,21378.0,0.32244055]
[1674240174621,0.50120556,21380.0,21378.0,0.32244055]
[1674240175136,0.51120556,21380.0,21378.0,0.32244055]
[1674240175425,0.50120556,21380.0,21378.0,0.32244055]
[1674240175678,0.51120556,21380.0,21378.0,0.32244055]
[1674240176456,0.51120556,21380.0,21377.0,0.15]
[1674240176721,0.51120556,21380.0,21376.0,0.617794]
[1674240176722,0.70552653,21380.0,21376.0,0.617794]
[1674240176994,0.373429,21379.0,21376.0,0.467794]
[1674240177275,0.40731418,21378.0,21376.0,0.467794]